fUSD/lending_fUSD_20250618
["ID","MTS","AMOUNT","RATE_DAILY","PERIOD"]
[366415051,1750237840995,-490.0,0.00016438,2]
[366415053,1750237841004,-490.0,0.00016438,2]
[366415055,1750237841013,-569.62,0.00016438,2]
[366415057,1750237841023,-499.87537334,0.00016438,2]
[366415059,1750237841032,-625.6,0.00016438,2]
[366415061,1750237841043,-1207.33,0.00016438,2]
[366415063,1750237841052,-697.39,0.00016438,2]
[366415065,1750237841062,-1292.5,0.00016438,2]
[366415067,1750237841072,-719.71,0.00016438,2]
[366415069,1750237841081,-490.0,0.00016438,2]
[366415071,1750237841090,-578.09,0.00016438,2]
[366415073,1750237841099,-572.48,0.00016438,2]
[366415075,1750237841109,-518.21,0.00016438,2]
[366415077,1750237841118,-490.0,0.00016438,2]
[366415079,1750237841127,-490.0,0.00016438,2]
[366415081,1750237841137,-986.32,0.00016438,2]
[366415083,1750237841146,-490.0,0.00016438,2]
[366415085,1750237841156,-490.0,0.00016438,2]
[366415087,1750237841166,-490.0,0.00016438,2]
[366415089,1750237841175,-490.0,0.00016438,2]
[366415091,1750237841185,-490.0,0.00016438,2]
[366415093,1750237841196,-490.0,0.00016438,2]
[366415095,1750237841206,-800.84,0.00016438,2]
[366415097,1750237841216,-1094.68,0.00016438,2]
[366415099,1750237841226,-516.13,0.00016438,2]
[366415101,1750237841235,-490.0,0.00016438,2]
[366415103,1750237841245,-1253.25,0.00016438,2]
[366415105,1750237841255,-490.0,0.00016438,2]
[366415107,1750237841264,-490.0,0.00016438,2]
[366415109,1750237841274,-495.83810809,0.00016438,2]
[366415111,1750237841283,-490.0,0.00016438,2]
[366415113,1750237841293,-490.0,0.00016438,2]
[366415115,1750237841302,-490.0,0.00016438,2]
[366415117,1750237841312,-490.0,0.00016438,2]
[366415119,1750237841321,-1004.758957,0.00016438,2]
[366415121,1750237841331,-500.52,0.00016438,2]
[366415123,1750237841340,-2060.6,0.00016438,2]
[366415125,1750237841350,-490.0,0.00016438,2]
[366415127,1750237841360,-490.0,0.00016438,2]
[366415129,1750237841370,-246.39266234,0.00016438,2]
[366415131,1750237841379,-490.0,0.00016438,2]
[366415133,1750237841389,-201.89493759,0.00016438,2]
[366415135,1750237841398,-494.25,0.00016438,2]
[366415137,1750237841408,-490.0,0.00016438,2]
[366415139,1750237841418,-701.04,0.00016438,2]
[366415141,1750237841429,-2157.97,0.00016438,2]
[366415143,1750237841439,-490.0,0.00016438,2]
[366415175,1750237841738,-636.12,0.00016438,2]
[366415178,1750237841768,-490.0,0.00016438,2]
[366415180,1750237841778,-490.0,0.00016438,2]
[366415182,1750237841788,-490.0,0.00016438,2]
[366415184,1750237841798,-1249.58,0.00016438,2]
[366415185,1750237841808,-502.24649946,0.00016438,2]
[366415187,1750237841819,-1049.31,0.00016438,2]
[366415189,1750237841828,-490.0,0.00016438,2]
[366415191,1750237841839,-353.53333005,0.00016438,2]
[366415192,1750237841849,-490.0,0.00016438,2]
[366415194,1750237841859,-853.16,0.00016438,2]
[366415196,1750237841868,-596.28,0.00016438,2]
[366415198,1750237841878,-755.56,0.00016438,2]
[366415199,1750237841887,-490.0,0.00016438,2]
[366415201,1750237841897,-490.0,0.00016438,2]
[366415203,1750237841906,-490.0,0.00016438,2]
[366415205,1750237841916,-490.0,0.00016438,2]
[366415207,1750237841925,-480.0,0.00016438,2]
[366415208,1750237841935,-2089.19,0.00016438,2]
[366415210,1750237841944,-490.0,0.00016438,2]
[366415212,1750237841954,-490.0,0.00016438,2]
[366415214,1750237841963,-491.1695396,0.00016438,2]
[366415216,1750237841973,-490.0,0.00016438,2]
[366415217,1750237841983,-500.0,0.00016438,2]
[366415219,1750237841993,-490.0,0.00016438,2]
[366415221,1750237842003,-500.0,0.00016438,2]
[366415223,1750237842012,-500.0,0.00016438,2]
[366415225,1750237842022,-490.0,0.00016438,2]
[366415227,1750237842031,-759.24,0.00016438,2]
[366415229,1750237842041,-490.0,0.00016438,2]
[366415230,1750237842051,-990.25,0.00016438,2]
[366415232,1750237842061,-490.0,0.00016438,2]
[366415234,1750237842070,-494.98099185,0.00016438,2]
[366415236,1750237842080,-490.0,0.00016438,2]
[366415238,1750237842089,-490.0,0.00016438,2]
[366415239,1750237842099,-490.0,0.00016438,2]
[366415241,1750237842108,-490.0,0.00016438,2]
[366415243,1750237842117,-490.0,0.00016438,2]
[366415245,1750237842127,-850.67,0.00016438,2]
[366415246,1750237842136,-490.84069628,0.00016438,2]
[366415248,1750237842146,-607.1,0.00016438,2]
[366415250,1750237842156,-2547.980076,0.00016438,2]
[366415252,1750237842165,-490.0,0.00016438,2]
[366415254,1750237842175,-790.16,0.00016438,2]
[366415256,1750237842185,-439.04994016,0.00016438,2]
[366415258,1750237842195,-684.84,0.00016438,2]
[366415259,1750237842206,-607.32,0.00016438,2]
[366415261,1750237842216,-490.0,0.00016438,2]
[366415263,1750237842226,-490.0,0.00016438,2]
[366415265,1750237842235,-220.19524625,0.00016438,2]
[366415266,1750237842245,-1386.51,0.00016438,2]
[366415268,1750237842254,-762.65,0.00016438,2]
[366415270,1750237842264,-490.0,0.00016438,2]
[366415272,1750237842274,-492.89444601,0.00016438,2]
[366415274,1750237842286,-494.78892502,0.00016438,2]
[366415276,1750237842296,-490.0,0.00016438,2]
[366415278,1750237842306,-490.0,0.00016438,2]
[366415280,1750237842316,-490.0,0.00016438,2]
[366415282,1750237842326,-559.76,0.00016438,2]
[366415284,1750237842336,-490.0,0.00016438,2]
[366415286,1750237842346,-1401.98,0.00016438,2]
[366415288,1750237842356,-1561.49,0.00016438,2]
[366415290,1750237842369,-490.0,0.00016438,2]
[366415292,1750237842378,-490.0,0.00016438,2]
[366415294,1750237842388,-490.0,0.00016438,2]
[366415296,1750237842398,-532.75,0.00016438,2]
[366415297,1750237842407,-776.11,0.00016438,2]
[366415299,1750237842417,-490.0,0.00016438,2]
[366415301,1750237842427,-490.0,0.00016438,2]
[366415303,1750237842437,-885.33,0.00016438,2]
[366415305,1750237842446,-543.14,0.00016438,2]
[366415307,1750237842457,-490.0,0.00016438,2]
[366415309,1750237842467,-1889.81,0.00016438,2]
[366415310,1750237842477,-597.14,0.00016438,2]
[366415312,1750237842487,-490.0,0.00016438,2]
[366415314,1750237842497,-751.64,0.00016438,2]
[366415316,1750237842507,-490.0,0.00016438,2]
[366415318,1750237842516,-416.69031958,0.00016438,2]
[366415320,1750237842525,-490.0,0.00016438,2]
[366415321,1750237842534,-490.0,0.00016438,2]
[366415323,1750237842544,-490.0,0.00016438,2]
[366415325,1750237842554,-490.0,0.00016438,2]
[366415327,1750237842563,-490.0,0.00016438,2]
[366415330,1750237842573,-490.0,0.00016438,2]
[366415333,1750237842583,-1575.13,0.00016438,2]
[366415335,1750237842592,-490.0,0.00016438,2]
[366415336,1750237842601,-480.0,0.00016438,2]
[366415338,1750237842611,-490.0,0.00016438,2]
[366415340,1750237842621,-1732.28,0.00016438,2]
[366415342,1750237842631,-677.87,0.00016438,2]
[366415344,1750237842641,-490.0,0.00016438,2]
[366415346,1750237842651,-490.0,0.00016438,2]
[366415348,1750237842661,-2856.95,0.00016438,2]
[366415349,1750237842670,-490.0,0.00016438,2]
[366415351,1750237842680,-669.91,0.00016438,2]
[366415353,1750237842690,-490.0,0.00016438,2]
[366415355,1750237842700,-490.0,0.00016438,2]
[366415357,1750237842710,-682.4,0.00016438,2]
[366415359,1750237842721,-490.0,0.00016438,2]
[366415361,1750237842730,-490.0,0.00016438,2]
[366415363,1750237842740,-490.0,0.00016438,2]
[366415365,1750237842750,-490.0,0.00016438,2]
[366415366,1750237842759,-1287.88,0.00016438,2]
[366415368,1750237842769,-723.22,0.00016438,2]
[366415370,1750237842779,-490.0,0.00016438,2]
[366415372,1750237842789,-521.76786814,0.00016438,2]
[366415374,1750237842798,-490.0,0.00016438,2]
[366415376,1750237842808,-490.0,0.00016438,2]
[366415377,1750237842817,-634.24,0.00016438,2]
[366415379,1750237842826,-490.0,0.00016438,2]
[366415381,1750237842836,-2063.76,0.00016438,2]
[366415383,1750237842846,-524.82,0.00016438,2]
[366415385,1750237842855,-490.0,0.00016438,2]
[366415387,1750237842865,-665.03,0.00016438,2]
[366415389,1750237842875,-490.0,0.00016438,2]
[366415390,1750237842884,-490.0,0.00016438,2]
[366415392,1750237842894,-490.0,0.00016438,2]
[366415394,1750237842904,-490.0,0.00016438,2]
[366415396,1750237842914,-490.0,0.00016438,2]
[366415398,1750237842923,-490.0,0.00016438,2]
[366415400,1750237842933,-490.0,0.00016438,2]
[366415402,1750237842943,-493.08375361,0.00016438,2]
[366415403,1750237842953,-2356.27,0.00016438,2]
[366415404,1750237842963,-490.0,0.00016438,2]
[366415405,1750237842973,-490.0,0.00016438,2]
[366415406,1750237842983,-573.35,0.00016438,2]
[366415407,1750237842993,-490.0,0.00016438,2]
[366415408,1750237843003,-524.17,0.00016438,2]
[366415409,1750237843013,-498.31,0.00016438,2]
[366415410,1750237843023,-1793.32,0.00016438,2]
[366415411,1750237843034,-490.0,0.00016438,2]
[366415412,1750237843044,-490.0,0.00016438,2]
[366415413,1750237843054,-490.0,0.00016438,2]
[366415414,1750237843064,-498.39981582,0.00016438,2]
[366415416,1750237843075,-1598.37,0.00016438,2]
[366415417,1750237843085,-1488.9,0.00016438,2]
[366415419,1750237843095,-490.0,0.00016438,2]
[366415421,1750237843105,-1562.15,0.00016438,2]
[366415423,1750237843115,-1562.15,0.00016438,2]
[366415425,1750237843124,-1562.15,0.00016438,2]
[366415427,1750237843135,-490.0,0.00016438,2]
[366415430,1750237843145,-490.0,0.00016438,2]
[366415432,1750237843154,-1102.94,0.00016438,2]
[366415434,1750237843164,-490.0,0.00016438,2]
[366415436,1750237843174,-490.0,0.00016438,2]
[366415438,1750237843183,-490.0,0.00016438,2]
[366415440,1750237843194,-490.0,0.00016438,2]
[366415442,1750237843206,-500.48,0.00016438,2]
[366415444,1750237843215,-490.0,0.00016438,2]
[366415446,1750237843225,-492.23124007,0.00016438,2]
[366415448,1750237843234,-1198.98,0.00016438,2]
[366415450,1750237843245,-590.12,0.00016438,2]
[366415452,1750237843254,-979.64,0.00016438,2]
[366415454,1750237843264,-490.0,0.00016438,2]
[366415456,1750237843275,-758.53,0.00016438,2]
[366415458,1750237843285,-490.0,0.00016438,2]
[366415460,1750237843294,-490.0,0.00016438,2]
[366415462,1750237843304,-490.0,0.00016438,2]
[366415464,1750237843314,-490.0,0.00016438,2]
[366415466,1750237843323,-490.0,0.00016438,2]
[366415468,1750237843333,-490.0,0.00016438,2]
[366415470,1750237843343,-460.0,0.00016438,2]
[366415472,1750237843352,-2507.51,0.00016438,2]
[366415474,1750237843363,-490.0,0.00016438,2]
[366415476,1750237843372,-505.3,0.00016438,2]
[366415478,1750237843382,-490.0,0.00016438,2]
[366415480,1750237843391,-490.0,0.00016438,2]
[366415483,1750237843401,-490.8852791,0.00016438,2]
[366415486,1750237843411,-490.0,0.00016438,2]
[366415489,1750237843421,-676.43,0.00016438,2]
[366415492,1750237843431,-490.0,0.00016438,2]
[366415494,1750237843440,-490.0,0.00016438,2]
[366415496,1750237843450,-494.49750189,0.00016438,2]
[366415498,1750237843459,-490.0,0.00016438,2]
[366415500,1750237843470,-490.0,0.00016438,2]
[366415502,1750237843479,-490.0,0.00016438,2]
[366415504,1750237843489,-490.0,0.00016438,2]
[366415506,1750237843498,-490.0,0.00016438,2]
[366415508,1750237843508,-490.0,0.00016438,2]
[366415510,1750237843518,-490.0,0.00016438,2]
[366415512,1750237843528,-624.37,0.00016438,2]
[366415514,1750237843537,-490.0,0.00016438,2]
[366415516,1750237843547,-723.65,0.00016438,2]
[366415518,1750237843557,-490.0,0.00016438,2]
[366415520,1750237843566,-490.0,0.00016438,2]
[366415522,1750237843576,-1521.91,0.00016438,2]
[366415524,1750237843586,-490.0,0.00016438,2]
[366415526,1750237843596,-490.0,0.00016438,2]
[366415528,1750237843605,-979.84,0.00016438,2]
[366415530,1750237843615,-490.0,0.00016438,2]
[366415532,1750237843625,-490.0,0.00016438,2]
[366415534,1750237843634,-490.0,0.00016438,2]
[366415536,1750237843644,-473.14624847,0.00016438,2]
[366415538,1750237843653,-656.26,0.00016438,2]
[366415540,1750237843663,-490.0,0.00016438,2]
[366415542,1750237843673,-670.32,0.00016438,2]
[366415544,1750237843682,-2468.46,0.00016438,2]
[366415546,1750237843692,-490.0,0.00016438,2]
[366415548,1750237843701,-490.0,0.00016438,2]
[366415550,1750237843711,-1354.75,0.00016438,2]
[366415552,1750237843720,-1196.09,0.00016438,2]
[366415554,1750237843729,-1100.41,0.00016438,2]
[366415556,1750237843739,-1616.31,0.00016438,2]
[366415558,1750237843748,-490.0,0.00016438,2]
[366415561,1750237843758,-710.68,0.00016438,2]
[366415563,1750237843767,-425.38988437,0.00016438,2]
[366415565,1750237843776,-490.0,0.00016438,2]
[366415567,1750237843786,-490.0,0.00016438,2]
[366415569,1750237843795,-1000.0,0.00016438,2]
[366415571,1750237843805,-1766.78,0.00016438,2]
[366415573,1750237843815,-490.0,0.00016438,2]
[366415575,1750237843824,-1242.02,0.00016438,2]
[366415577,1750237843833,-490.0,0.00016438,2]
[366415579,1750237843843,-490.0,0.00016438,2]
[366415581,1750237843853,-490.0,0.00016438,2]
[366415583,1750237843862,-1091.88,0.00016438,2]
[366415585,1750237843872,-490.0,0.00016438,2]
[366415587,1750237843881,-867.86,0.00016438,2]
[366415589,1750237843890,-1603.35,0.00016438,2]
[366415591,1750237843900,-490.0,0.00016438,2]
[366415593,1750237843910,-1261.95,0.00016438,2]
[366415594,1750237843919,-490.0,0.00016438,2]
[366415596,1750237843930,-492.25162212,0.00016438,2]
[366415599,1750237843940,-2139.08,0.00016438,2]
[366415601,1750237843949,-492.97445641,0.00016438,2]
[366415603,1750237843959,-1385.83,0.00016438,2]
[366415605,1750237843969,-804.0,0.00016438,2]
[366415606,1750237843979,-490.0,0.00016438,2]
[366415608,1750237843988,-1191.21,0.00016438,2]
[366415610,1750237843998,-490.0,0.00016438,2]
[366415613,1750237844008,-495.71197826,0.00016438,2]
[366415615,1750237844017,-490.0,0.00016438,2]
[366415617,1750237844026,-962.31,0.00016438,2]
[366415619,1750237844035,-490.0,0.00016438,2]
[366415621,1750237844045,-654.61,0.00016438,2]
[366415623,1750237844054,-430.0,0.00016438,2]
[366415625,1750237844063,-2296.09,0.00016438,2]
[366415627,1750237844073,-1043.26,0.00016438,2]
[366415629,1750237844082,-490.0,0.00016438,2]
[366415631,1750237844091,-620.7,0.00016438,2]
[366415633,1750237844100,-490.0,0.00016438,2]
[366415635,1750237844110,-490.0,0.00016438,2]
[366415637,1750237844119,-490.0,0.00016438,2]
[366415639,1750237844128,-1357.12,0.00016438,2]
[366415641,1750237844138,-490.0,0.00016438,2]
[366415643,1750237844147,-490.0,0.00016438,2]
[366415653,1750237844158,-490.0,0.00016438,2]
[366415655,1750237844247,-490.0,0.00016438,2]
[366415657,1750237844257,-490.0,0.00016438,2]
[366415659,1750237844266,-490.0,0.00016438,2]
[366415661,1750237844275,-490.0,0.00016438,2]
[366415663,1750237844285,-490.0,0.00016438,2]
[366415665,1750237844295,-490.0,0.00016438,2]
[366415667,1750237844304,-434.80920809,0.00016438,2]
[366415669,1750237844314,-490.0,0.00016438,2]
[366415671,1750237844322,-512.76,0.00016438,2]
[366415673,1750237844333,-579.28,0.00016438,2]
[366415675,1750237844342,-490.0,0.00016438,2]
[366415677,1750237844351,-1491.15,0.00016438,2]
[366415679,1750237844360,-490.0,0.00016438,2]
[366415681,1750237844370,-490.0,0.00016438,2]
[366415683,1750237844380,-806.14,0.00016438,2]
[366415685,1750237844390,-3062.95,0.00016438,2]
[366415687,1750237844400,-1017.1,0.00016438,2]
[366415689,1750237844410,-490.0,0.00016438,2]
[366415691,1750237844420,-490.0,0.00016438,2]
[366415693,1750237844429,-1705.75,0.00016438,2]
[366415695,1750237844439,-1653.03,0.00016438,2]
[366415697,1750237844448,-490.0,0.00016438,2]
[366415699,1750237844458,-490.0,0.00016438,2]
[366415701,1750237844469,-490.0,0.00016438,2]
[366415703,1750237844479,-555.31,0.00016438,2]
[366415705,1750237844489,-850.78,0.00016438,2]
[366415707,1750237844498,-22309.15,0.00016438,2]
[366415709,1750237844508,-490.0,0.00016438,2]
[366415711,1750237844517,-2292.1,0.00016438,2]
[366415713,1750237844527,-4776.38,0.00016438,2]
[366415715,1750237844536,-3697.55,0.00016438,2]
[366415716,1750237844546,-490.0,0.00016438,2]
[366415718,1750237844555,-1273.3,0.00016438,2]
[366415720,1750237844565,-626.3,0.00016438,2]
[366415722,1750237844574,-490.0,0.00016438,2]
[366415724,1750237844584,-490.0,0.00016438,2]
[366415726,1750237844594,-490.0,0.00016438,2]
[366415728,1750237844603,-655.92,0.00016438,2]
[366415730,1750237844613,-606.24,0.00016438,2]
[366415732,1750237844623,-490.0,0.00016438,2]
[366415734,1750237844633,-4623.4,0.00016438,2]
[366415736,1750237844642,-2089.86,0.00016438,2]
[366415738,1750237844652,-3254.32,0.00016438,2]
[366415741,1750237844662,-1423.4,0.00016438,2]
[366415743,1750237844671,-634.55,0.00016438,2]
[366415745,1750237844681,-158.4014527,0.00016438,2]
[366415747,1750237844691,-490.0,0.00016438,2]
[366415749,1750237844699,-490.0,0.00016438,2]
[366415751,1750237844709,-2030.77,0.00016438,2]
[366415753,1750237844721,-490.0,0.00016438,2]
[366415755,1750237844731,-3774.85,0.00016438,2]
[366415757,1750237844741,-5558.86,0.00016438,2]
[366415759,1750237844750,-490.0,0.00016438,2]
[366415761,1750237844760,-493.28127048,0.00016438,2]
[366415763,1750237844769,-490.0,0.00016438,2]
[366415765,1750237844778,-16382.5,0.00016438,2]
[366415766,1750237844788,-490.0,0.00016438,2]
[366415768,1750237844798,-490.0,0.00016438,2]
[366415770,1750237844807,-664.9,0.00016438,2]
[366415772,1750237844817,-498.85121721,0.00016438,2]
[366415774,1750237844827,-279.84293113,0.00016438,2]
[366415776,1750237844836,-549.58,0.00016438,2]
[366415778,1750237844845,-490.0,0.00016438,2]
[366415780,1750237844855,-1785.77,0.00016438,2]
[366415782,1750237844865,-490.0,0.00016438,2]
[366415784,1750237844874,-2123.81,0.00016438,2]
[366415786,1750237844883,-490.0,0.00016438,2]
[366415788,1750237844892,-8184.11,0.00016438,2]
[366415790,1750237844901,-490.0,0.00016438,2]
[366415792,1750237844911,-7537.01,0.00016438,2]
[366415794,1750237844920,-490.0,0.00016438,2]
[366415796,1750237844930,-900.37,0.00016438,2]
[366415798,1750237844939,-490.0,0.00016438,2]
[366415800,1750237844948,-1956.33,0.00016438,2]
[366415802,1750237844957,-2642.61,0.00016438,2]
[366415804,1750237844967,-490.0,0.00016438,2]
[366415806,1750237844977,-2193.49,0.00016438,2]
[366415808,1750237844986,-490.0,0.00016438,2]
[366415810,1750237844995,-1707.47,0.00016438,2]
[366415812,1750237845004,-1610.44,0.00016438,2]
[366415814,1750237845014,-490.0,0.00016438,2]
[366415816,1750237845024,-490.0,0.00016438,2]
[366415818,1750237845033,-490.0,0.00016438,2]
[366415820,1750237845043,-490.0,0.00016438,2]
[366415822,1750237845053,-490.0,0.00016438,2]
[366415825,1750237845063,-798.77,0.00016438,2]
[366415826,1750237845072,-1216.67,0.00016438,2]
[366415829,1750237845083,-1190.03,0.00016438,2]
[366415831,1750237845092,-3571.21,0.00016438,2]
[366415832,1750237845101,-490.0,0.00016438,2]
[366415834,1750237845110,-570.28,0.00016438,2]
[366415836,1750237845120,-3640.28,0.00016438,2]
[366415838,1750237845130,-1388.43,0.00016438,2]
[366415841,1750237845139,-490.0,0.00016438,2]
[366415843,1750237845149,-7328.33,0.00016438,2]
[366415845,1750237845158,-490.0,0.00016438,2]
[366415847,1750237845167,-492.77010077,0.00016438,2]
[366415849,1750237845176,-1226.83,0.00016438,2]
[366415851,1750237845185,-624.51,0.00016438,2]
[366415853,1750237845196,-490.0,0.00016438,2]
[366415854,1750237845206,-1260.25,0.00016438,2]
[366415856,1750237845217,-1898.7,0.00016438,2]
[366415858,1750237845227,-490.0,0.00016438,2]
[366415860,1750237845237,-2232.12,0.00016438,2]
[366415862,1750237845247,-2030.26,0.00016438,2]
[366415864,1750237845258,-490.0,0.00016438,2]
[366415866,1750237845268,-750.69,0.00016438,2]
[366415868,1750237845277,-490.0,0.00016438,2]
[366415870,1750237845287,-598.67,0.00016438,2]
[366415872,1750237845297,-1076.15,0.00016438,2]
[366415874,1750237845306,-490.0,0.00016438,2]
[366415876,1750237845316,-1695.59,0.00016438,2]
[366415878,1750237845325,-4560.19,0.00016438,2]
[366415880,1750237845334,-1697.67,0.00016438,2]
[366415882,1750237845343,-490.0,0.00016438,2]
[366415884,1750237845353,-15046.38,0.00016438,2]
[366415886,1750237845362,-5671.23,0.00016438,2]
[366415888,1750237845372,-490.0,0.00016438,2]
[366415890,1750237845381,-494.40597644,0.00016438,2]
[366415892,1750237845391,-1133.07,0.00016438,2]
[366415894,1750237845400,-490.0,0.00016438,2]
[366415896,1750237845409,-490.0,0.00016438,2]
[366415898,1750237845418,-704.09,0.00016438,2]
[366415900,1750237845427,-490.0,0.00016438,2]
[366415902,1750237845437,-490.0,0.00016438,2]
[366415904,1750237845446,-8333.73,0.00016438,2]
[366415906,1750237845455,-649.58,0.00016438,2]
[366415908,1750237845466,-538.71,0.00016438,2]
[366415910,1750237845475,-490.0,0.00016438,2]
[366415912,1750237845484,-808.67,0.00016438,2]
[366415914,1750237845493,-490.0,0.00016438,2]
[366415916,1750237845503,-1810.85,0.00016438,2]
[366415918,1750237845512,-490.0,0.00016438,2]
[366415920,1750237845521,-716.03,0.00016438,2]
[366415922,1750237845531,-2927.43,0.00016438,2]
[366415924,1750237845540,-816.11,0.00016438,2]
[366415926,1750237845550,-490.0,0.00016438,2]
[366415927,1750237845559,-490.0,0.00016438,2]
[366415929,1750237845570,-490.0,0.00016438,2]
[366415931,1750237845579,-507.04725455,0.00016438,2]
[366415933,1750237845590,-490.0,0.00016438,2]
[366415936,1750237845601,-1244.15,0.00016438,2]
[366415937,1750237845610,-1663.31,0.00016438,2]
[366415939,1750237845620,-958.67,0.00016438,2]
[366415941,1750237845630,-973.55,0.00016438,2]
[366415943,1750237845639,-1641.21,0.00016438,2]
[366415946,1750237845649,-1314.85,0.00016438,2]
[366415947,1750237845659,-1351.29,0.00016438,2]
[366415949,1750237845668,-1243.18,0.00016438,2]
[366415951,1750237845678,-490.0,0.00016438,2]
[366415954,1750237845688,-496.11335169,0.00016438,2]
[366415956,1750237845697,-490.0,0.00016438,2]
[366415957,1750237845707,-416.46035607,0.00016438,2]
[366415959,1750237845718,-2945.63,0.00016438,2]
[366415961,1750237845727,-1555.65,0.00016438,2]
[366415963,1750237845737,-490.0,0.00016438,2]
[366415965,1750237845747,-3474.35,0.00016438,2]
[366415967,1750237845757,-1913.92,0.00016438,2]
[366415969,1750237845766,-490.0,0.00016438,2]
[366415971,1750237845776,-1153.18,0.00016438,2]
[366415972,1750237845784,-490.0,0.00016438,2]
[366415973,1750237845794,-490.0,0.00016438,2]
[366415974,1750237845803,-1825.49,0.00016438,2]
[366415975,1750237845812,-804.88,0.00016438,2]
[366415976,1750237845821,-490.0,0.00016438,2]
[366415977,1750237845830,-891.19,0.00016438,2]
[366415978,1750237845839,-2420.5,0.00016438,2]
[366415979,1750237845848,-496.44636209,0.00016438,2]
[366415980,1750237845857,-2237.25,0.00016438,2]
[366415981,1750237845866,-490.0,0.00016438,2]
[366415982,1750237845875,-490.0,0.00016438,2]
[366415983,1750237845884,-490.0,0.00016438,2]
[366415985,1750237845892,-490.0,0.00016438,2]
[366415987,1750237845902,-490.0,0.00016438,2]
[366415989,1750237845911,-490.0,0.00016438,2]
[366415991,1750237845922,-642.74,0.00016438,2]
[366415993,1750237845932,-490.0,0.00016438,2]
[366415995,1750237845942,-490.0,0.00016438,2]
[366415997,1750237845954,-495.55554165,0.00016438,2]
[366415999,1750237845967,-1212.64,0.00016438,2]
[366416001,1750237845977,-1212.64,0.00016438,2]
[366416003,1750237845987,-1212.64,0.00016438,2]
[366416005,1750237845997,-490.0,0.00016438,2]
[366416007,1750237846007,-166.09598375,0.00016438,2]
[366416009,1750237846016,-490.0,0.00016438,2]
[366416011,1750237846026,-7986.91,0.00016438,2]
[366416013,1750237846036,-724.89,0.00016438,2]
[366416015,1750237846046,-6544.45,0.00016438,2]
[366416017,1750237846056,-4359.05,0.00016438,2]
[366416019,1750237846066,-2653.62,0.00016438,2]
[366416021,1750237846075,-490.0,0.00016438,2]
[366416023,1750237846085,-554.91,0.00016438,2]
[366416025,1750237846096,-394.63987535,0.00016438,2]
[366416027,1750237846105,-490.0,0.00016438,2]
[366416029,1750237846114,-12514.06,0.00016438,2]
[366416031,1750237846124,-2728.73,0.00016438,2]
[366416033,1750237846133,-1761.28,0.00016438,2]
[366416035,1750237846142,-662.62,0.00016438,2]
[366416037,1750237846152,-577.43,0.00016438,2]
[366416039,1750237846162,-493.09386812,0.00016438,2]
[366416041,1750237846171,-5245.46,0.00016438,2]
[366416043,1750237846181,-1220.37,0.00016438,2]
[366416045,1750237846190,-1784.42,0.00016438,2]
[366416047,1750237846202,-516.18,0.00016438,2]
[366416049,1750237846211,-490.0,0.00016438,2]
[366416051,1750237846221,-1279.79,0.00016438,2]